[Event "Titled Tuesday Blitz May 2 Late 2023"]
[White "Ansh M Shah"]
[Black "Rengifo Blancas, Renzo Jhonathan"]
[WhiteFideId "25033379"]
[BlackFideId "3807185"]
[WhiteElo "2084"]
[BlackElo "2085"]
[Result "0-1"]
[Round "02"]
[TimeControl "180+2"]
[Date "2023.05.02"]
[WhiteClock "0:01:00"]
[BlackClock "0:02:30"]

1. d4 {[%clk 0:03:00]}  Nf6 {[%clk 0:02:56]} 2. c4 {[%clk 0:03:01]}  e6 {[%clk 0:02:52]} 3. g3 {[%clk 0:03:01]}  d5 {[%clk 0:02:51]} 4. Bg2 {[%clk 0:03:02]}  Be7 {[%clk 0:02:51]} 5. Nf3 {[%clk 0:03:02]}  O-O {[%clk 0:02:46]} 6. O-O {[%clk 0:03:03]}  c5 {[%clk 0:02:46]} 7. Qc2 {[%clk 0:03:04]}  Nc6 {[%clk 0:02:46]} 8. dxc5 {[%clk 0:03:04]}  Bxc5 {[%clk 0:02:46]} 9. cxd5 {[%clk 0:03:04]}  Qxd5 {[%clk 0:02:44]} 10. Nc3 {[%clk 0:03:04]}  Qh5 {[%clk 0:02:44]} 11. h3 {[%clk 0:02:59]}  e5 {[%clk 0:02:41]} 12. g4 {[%clk 0:02:59]}  Bxg4 {[%clk 0:02:39]} 13. hxg4 {[%clk 0:02:59]}  Nxg4 {[%clk 0:02:40]} 14. Ne4 {[%clk 0:02:50]}  Nd4 {[%clk 0:02:39]} 15. Rd1 {[%clk 0:01:36]}  Nxc2 {[%clk 0:02:37]} 16. Nxc5 {[%clk 0:01:36]}  Nxa1 {[%clk 0:02:36]} 17. Bd2 {[%clk 0:01:11]}  Nc2 {[%clk 0:02:35]} 18. Rc1 {[%clk 0:01:12]}  Nd4 {[%clk 0:02:34]} 19. Nxd4 {[%clk 0:01:12]}  exd4 {[%clk 0:02:34]} 20. Ne4 {[%clk 0:01:13]}  Rae8 {[%clk 0:02:32]} 21. Ng3 {[%clk 0:01:13]}  Qh2+ {[%clk 0:02:32]} 22. Kf1 {[%clk 0:01:12]}  Ne3+ {[%clk 0:02:31]} 23. Bxe3 {[%clk 0:01:08]}  dxe3 {[%clk 0:02:31]} 24. Nh1 {[%clk 0:01:03]}  exf2 {[%clk 0:02:31]} 25. Nxf2 {[%clk 0:01:04]}  Rxe2 {[%clk 0:02:30]} 26. Kxe2 {[%clk 0:01:00]}  Qxg2 {[%clk 0:02:30]} 0-1


[Site "https://www.chess.com"]

[Event "Titled Tuesday Blitz May 2 Late 2023"]
[White "Urbina Perez, Juan Antonio"]
[Black "Tsyhanchuk, Stanislav"]
[WhiteFideId "2217368"]
[BlackFideId "13505130"]
[WhiteElo "2197"]
[BlackElo "2173"]
[Result "0-1"]
[Round "02"]
[TimeControl "180+2"]
[Date "2023.05.02"]
[WhiteClock "0:00:17"]
[BlackClock "0:00:25"]

1. c4 {[%clk 0:03:00]}  c5 {[%clk 0:02:56]} 2. g3 {[%clk 0:03:00]}  Nc6 {[%clk 0:02:56]} 3. Bg2 {[%clk 0:03:01]}  g6 {[%clk 0:02:56]} 4. Nf3 {[%clk 0:03:01]}  Bg7 {[%clk 0:02:56]} 5. O-O {[%clk 0:03:01]}  e6 {[%clk 0:02:54]} 6. Nc3 {[%clk 0:02:57]}  Nge7 {[%clk 0:02:54]} 7. b3 {[%clk 0:02:47]}  O-O {[%clk 0:02:51]} 8. Bb2 {[%clk 0:02:45]}  d5 {[%clk 0:02:51]} 9. cxd5 {[%clk 0:02:44]}  exd5 {[%clk 0:02:52]} 10. d3 {[%clk 0:02:44]}  b6 {[%clk 0:02:51]} 11. Rc1 {[%clk 0:02:38]}  Bb7 {[%clk 0:02:50]} 12. Qc2 {[%clk 0:02:38]}  Rc8 {[%clk 0:02:48]} 13. Qb1 {[%clk 0:02:38]}  Re8 {[%clk 0:02:47]} 14. Rfe1 {[%clk 0:02:37]}  Qd7 {[%clk 0:02:41]} 15. e3 {[%clk 0:02:37]}  a6 {[%clk 0:02:36]} 16. Ne2 {[%clk 0:02:36]}  Bxb2 {[%clk 0:02:28]} 17. Qxb2 {[%clk 0:02:37]}  Nf5 {[%clk 0:02:26]} 18. d4 {[%clk 0:02:27]}  Nb4 {[%clk 0:02:19]} 19. Red1 {[%clk 0:02:15]}  Qe7 {[%clk 0:01:59]} 20. a3 {[%clk 0:02:12]}  Nxe3 {[%clk 0:01:55]} 21. fxe3 {[%clk 0:01:54]}  Qxe3+ {[%clk 0:01:56]} 22. Kf1 {[%clk 0:01:47]}  Nd3 {[%clk 0:01:54]} 23. Rxd3 {[%clk 0:01:47]}  Qxd3 {[%clk 0:01:55]} 24. Qc2 {[%clk 0:01:42]}  Qe3 {[%clk 0:01:45]} 25. Qd2 {[%clk 0:01:35]}  Qxd2 {[%clk 0:01:38]} 26. Nxd2 {[%clk 0:01:36]}  a5 {[%clk 0:01:34]} 27. Kf2 {[%clk 0:01:22]}  Ba6 {[%clk 0:01:12]} 28. Nf4 {[%clk 0:01:21]}  cxd4 {[%clk 0:01:10]} 29. Rxc8 {[%clk 0:01:12]}  Rxc8 {[%clk 0:01:11]} 30. Nxd5 {[%clk 0:01:05]}  Rc2 {[%clk 0:01:09]} 31. Ke1 {[%clk 0:01:05]}  Rc1+ {[%clk 0:01:05]} 32. Kf2 {[%clk 0:01:04]}  d3 {[%clk 0:00:52]} 33. Nxb6 {[%clk 0:01:00]}  Rd1 {[%clk 0:00:46]} 34. Ke3 {[%clk 0:00:58]}  Re1+ {[%clk 0:00:46]} 35. Kd4 {[%clk 0:00:30]}  Re2 {[%clk 0:00:47]} 36. Kc3 {[%clk 0:00:23]}  Rxg2 {[%clk 0:00:46]} 37. Nbc4 {[%clk 0:00:22]}  Rxh2 {[%clk 0:00:30]} 38. Nxa5 {[%clk 0:00:22]}  Rg2 {[%clk 0:00:28]} 39. b4 {[%clk 0:00:20]}  Rxg3 {[%clk 0:00:27]} 40. a4 {[%clk 0:00:21]}  Rg4 {[%clk 0:00:26]} 41. Nac4 {[%clk 0:00:17]}  Bxc4 {[%clk 0:00:24]} 42. Nxc4 {[%clk 0:00:18]}  Rxc4+ {[%clk 0:00:25]} 43. Kxc4 {[%clk 0:00:17]}  d2 {[%clk 0:00:25]} 0-1


[Site "https://www.chess.com"]

[Event "Titled Tuesday Blitz May 2 Late 2023"]
[White "Kostiukov, Alexandr"]
[Black "Kukelko, Alexey"]
[WhiteFideId "14108100"]
[BlackFideId "14153084"]
[WhiteElo "2202"]
[BlackElo "2264"]
[Result "0-1"]
[Round "02"]
[TimeControl "180+2"]
[Date "2023.05.02"]
[WhiteClock "0:00:09"]
[BlackClock "0:00:13"]

1. g3 {[%clk 0:02:57]}  d5 {[%clk 0:02:57]} 2. Bg2 {[%clk 0:02:57]}  g6 {[%clk 0:02:57]} 3. d3 {[%clk 0:02:56]}  Bg7 {[%clk 0:02:55]} 4. e4 {[%clk 0:02:56]}  e6 {[%clk 0:02:52]} 5. Qe2 {[%clk 0:02:56]}  Ne7 {[%clk 0:02:52]} 6. Nf3 {[%clk 0:02:54]}  c5 {[%clk 0:02:52]} 7. h4 {[%clk 0:02:53]}  h6 {[%clk 0:02:51]} 8. O-O {[%clk 0:02:49]}  Nbc6 {[%clk 0:02:51]} 9. c4 {[%clk 0:02:49]}  O-O {[%clk 0:02:46]} 10. Nc3 {[%clk 0:02:43]}  d4 {[%clk 0:02:33]} 11. Na4 {[%clk 0:02:42]}  Qd6 {[%clk 0:02:28]} 12. a3 {[%clk 0:02:40]}  e5 {[%clk 0:02:22]} 13. b4 {[%clk 0:02:37]}  b6 {[%clk 0:02:06]} 14. b5 {[%clk 0:02:21]}  Na5 {[%clk 0:01:49]} 15. h5 {[%clk 0:01:53]}  Bg4 {[%clk 0:01:46]} 16. Qc2 {[%clk 0:01:41]}  Bxh5 {[%clk 0:01:44]} 17. Nh2 {[%clk 0:01:40]}  f5 {[%clk 0:01:35]} 18. exf5 {[%clk 0:01:38]}  gxf5 {[%clk 0:01:35]} 19. Bxa8 {[%clk 0:01:20]}  Rxa8 {[%clk 0:01:36]} 20. f4 {[%clk 0:01:17]}  e4 {[%clk 0:01:33]} 21. Qg2 {[%clk 0:01:10]}  Re8 {[%clk 0:01:11]} 22. g4 {[%clk 0:01:04]}  fxg4 {[%clk 0:01:01]} 23. dxe4 {[%clk 0:00:59]}  d3 {[%clk 0:01:00]} 24. Rb1 {[%clk 0:00:56]}  Nxc4 {[%clk 0:00:59]} 25. Nxg4 {[%clk 0:00:42]}  d2 {[%clk 0:00:59]} 26. Bxd2 {[%clk 0:00:28]}  Nxd2 {[%clk 0:00:42]} 27. Rfd1 {[%clk 0:00:17]}  Qd4+ {[%clk 0:00:36]} 28. Kh2 {[%clk 0:00:15]}  Bxg4 {[%clk 0:00:19]} 29. Rxd2 {[%clk 0:00:15]}  Qxa4 {[%clk 0:00:17]} 30. Qxg4 {[%clk 0:00:14]}  Qxe4 {[%clk 0:00:17]} 31. Rg1 {[%clk 0:00:10]}  Nf5 {[%clk 0:00:18]} 32. Rdg2 {[%clk 0:00:09]}  Rf8 {[%clk 0:00:16]} 33. Qg6 {[%clk 0:00:08]}  Qxf4+ {[%clk 0:00:14]} 34. Kh1 {[%clk 0:00:08]}  Qh4+ {[%clk 0:00:13]} 35. Rh2 {[%clk 0:00:09]}  Qe4+ {[%clk 0:00:13]} 36. Rhg2 {[%clk 0:00:09]}  Ng3+ {[%clk 0:00:13]} 0-1


[Site "https://www.chess.com"]

[Event "Titled Tuesday Blitz May 2 Late 2023"]
[White "Van den Dikkenberg, Erik"]
[Black "Ladan, Nicholas"]
[WhiteFideId "1005880"]
[BlackFideId "30918855"]
[WhiteElo "2118"]
[BlackElo "2167"]
[Result "1-0"]
[Round "02"]
[TimeControl "180+2"]
[Date "2023.05.02"]
[WhiteClock "0:00:09"]
[BlackClock "0:00:10"]

1. e4 {[%clk 0:03:00]}  e5 {[%clk 0:02:57]} 2. Nf3 {[%clk 0:02:58]}  Nc6 {[%clk 0:02:54]} 3. d4 {[%clk 0:02:58]}  exd4 {[%clk 0:02:54]} 4. Nxd4 {[%clk 0:02:58]}  Bc5 {[%clk 0:02:55]} 5. Nb3 {[%clk 0:02:57]}  Bb6 {[%clk 0:02:54]} 6. Nc3 {[%clk 0:02:56]}  Nge7 {[%clk 0:02:53]} 7. Qe2 {[%clk 0:02:37]}  O-O {[%clk 0:02:52]} 8. Be3 {[%clk 0:02:37]}  f5 {[%clk 0:02:52]} 9. O-O-O {[%clk 0:02:34]}  f4 {[%clk 0:02:52]} 10. Bc5 {[%clk 0:02:27]}  d6 {[%clk 0:02:39]} 11. f3 {[%clk 0:01:54]}  Be6 {[%clk 0:02:38]} 12. Bf2 {[%clk 0:01:48]}  Ne5 {[%clk 0:02:28]} 13. Nd5 {[%clk 0:01:44]}  Nxd5 {[%clk 0:02:22]} 14. exd5 {[%clk 0:01:43]}  Bf5 {[%clk 0:02:22]} 15. Nd4 {[%clk 0:01:40]}  Qf6 {[%clk 0:02:12]} 16. Nxf5 {[%clk 0:01:29]}  Qxf5 {[%clk 0:02:11]} 17. h4 {[%clk 0:01:13]}  Rae8 {[%clk 0:02:11]} 18. Qd2 {[%clk 0:01:09]}  Rf6 {[%clk 0:01:41]} 19. Bd4 {[%clk 0:00:59]}  Bxd4 {[%clk 0:01:25]} 20. Qxd4 {[%clk 0:00:59]}  Nd7 {[%clk 0:01:16]} 21. Bd3 {[%clk 0:00:44]}  Qe5 {[%clk 0:01:13]} 22. Qxa7 {[%clk 0:00:42]}  Nc5 {[%clk 0:01:11]} 23. Rhe1 {[%clk 0:00:25]}  Nxd3+ {[%clk 0:00:51]} 24. cxd3 {[%clk 0:00:24]}  Qxe1 {[%clk 0:00:52]} 25. Rxe1 {[%clk 0:00:24]}  Rxe1+ {[%clk 0:00:53]} 26. Kd2 {[%clk 0:00:25]}  Re7 {[%clk 0:00:54]} 27. Qb8+ {[%clk 0:00:25]}  Rf8 {[%clk 0:00:53]} 28. Qxb7 {[%clk 0:00:25]}  Rfe8 {[%clk 0:00:53]} 29. Kc3 {[%clk 0:00:24]}  Kf7 {[%clk 0:00:46]} 30. a4 {[%clk 0:00:23]}  c5 {[%clk 0:00:27]} 31. Qc6 {[%clk 0:00:22]}  Rd8 {[%clk 0:00:26]} 32. a5 {[%clk 0:00:22]}  Rdd7 {[%clk 0:00:26]} 33. a6 {[%clk 0:00:20]}  Kf6 {[%clk 0:00:25]} 34. Qb6 {[%clk 0:00:19]}  Ke5 {[%clk 0:00:25]} 35. Qb3 {[%clk 0:00:17]}  Ra7 {[%clk 0:00:24]} 36. Qc4 {[%clk 0:00:17]}  Kf5 {[%clk 0:00:23]} 37. b3 {[%clk 0:00:15]}  h6 {[%clk 0:00:22]} 38. Qb5 {[%clk 0:00:15]}  g5 {[%clk 0:00:21]} 39. Qc6 {[%clk 0:00:16]}  Ke5 {[%clk 0:00:21]} 40. hxg5 {[%clk 0:00:15]}  hxg5 {[%clk 0:00:21]} 41. Qb6 {[%clk 0:00:15]}  Kxd5 {[%clk 0:00:20]} 42. Qb5 {[%clk 0:00:15]}  Rec7 {[%clk 0:00:19]} 43. Qc4+ {[%clk 0:00:15]}  Ke5 {[%clk 0:00:19]} 44. Qe4+ {[%clk 0:00:15]}  Kf6 {[%clk 0:00:20]} 45. Qd5 {[%clk 0:00:14]}  Rxa6 {[%clk 0:00:18]} 46. Qg8 {[%clk 0:00:11]}  Raa7 {[%clk 0:00:17]} 47. Qf8+ {[%clk 0:00:11]}  Ke6 {[%clk 0:00:17]} 48. Qh6+ {[%clk 0:00:10]}  Kd7 {[%clk 0:00:17]} 49. Qxg5 {[%clk 0:00:10]}  Kc6 {[%clk 0:00:17]} 50. Qf5 {[%clk 0:00:10]}  Re7 {[%clk 0:00:18]} 51. Qxf4 {[%clk 0:00:10]}  Re5 {[%clk 0:00:18]} 52. Qg4 {[%clk 0:00:10]}  Rae7 {[%clk 0:00:18]} 53. f4 {[%clk 0:00:10]}  Re1 {[%clk 0:00:17]} 54. Qf3+ {[%clk 0:00:10]}  Kc7 {[%clk 0:00:17]} 55. f5 {[%clk 0:00:10]}  R7e2 {[%clk 0:00:17]} 56. Kc4 {[%clk 0:00:10]}  Rb2 {[%clk 0:00:13]} 57. Qd5 {[%clk 0:00:09]}  Rc1+ {[%clk 0:00:13]} 58. Kb5 {[%clk 0:00:09]}  Rcb1 {[%clk 0:00:12]} 59. Qf7+ {[%clk 0:00:09]}  Kd8 {[%clk 0:00:12]} 60. Kc6 {[%clk 0:00:09]}  Rxb3 {[%clk 0:00:10]} 61. Qd7# {[%clk 0:00:09]} 1-0


[Site "https://www.chess.com"]

[Event "Titled Tuesday Blitz May 2 Late 2023"]
[White "Chakravarthi Reddy, M"]
[Black "Marczuk, Dominik"]
[WhiteFideId "25009532"]
[BlackFideId "1111264"]
[WhiteElo "2201"]
[BlackElo "2174"]
[Result "0-1"]
[Round "02"]
[TimeControl "180+2"]
[Date "2023.05.02"]
[WhiteClock "0:00:19"]
[BlackClock "0:00:10"]

1. e4 {[%clk 0:03:00]}  c5 {[%clk 0:02:56]} 2. Nf3 {[%clk 0:02:54]}  Nc6 {[%clk 0:02:56]} 3. Bb5 {[%clk 0:02:44]}  g6 {[%clk 0:02:56]} 4. O-O {[%clk 0:02:44]}  Bg7 {[%clk 0:02:56]} 5. c3 {[%clk 0:02:44]}  Nf6 {[%clk 0:02:56]} 6. Re1 {[%clk 0:02:45]}  O-O {[%clk 0:02:56]} 7. e5 {[%clk 0:02:45]}  Nd5 {[%clk 0:02:56]} 8. Bxc6 {[%clk 0:02:41]}  bxc6 {[%clk 0:02:55]} 9. d4 {[%clk 0:02:40]}  cxd4 {[%clk 0:02:54]} 10. cxd4 {[%clk 0:02:41]}  d6 {[%clk 0:02:53]} 11. Qe2 {[%clk 0:02:27]}  Qb6 {[%clk 0:02:43]} 12. Nc3 {[%clk 0:02:22]}  Ba6 {[%clk 0:02:16]} 13. Qe4 {[%clk 0:02:14]}  Nb4 {[%clk 0:02:11]} 14. Rd1 {[%clk 0:01:43]}  d5 {[%clk 0:00:58]} 15. Qb1 {[%clk 0:01:35]}  Bb7 {[%clk 0:00:59]} 16. a3 {[%clk 0:01:34]}  Na6 {[%clk 0:00:59]} 17. b4 {[%clk 0:01:28]}  Bc8 {[%clk 0:00:54]} 18. h3 {[%clk 0:01:26]}  Bf5 {[%clk 0:00:54]} 19. Qa2 {[%clk 0:01:25]}  f6 {[%clk 0:00:53]} 20. Bf4 {[%clk 0:01:20]}  Nc7 {[%clk 0:00:50]} 21. Na4 {[%clk 0:01:19]}  Qb5 {[%clk 0:00:49]} 22. Nc5 {[%clk 0:01:19]}  g5 {[%clk 0:00:46]} 23. Bg3 {[%clk 0:01:18]}  Ne6 {[%clk 0:00:42]} 24. Rac1 {[%clk 0:01:17]}  a5 {[%clk 0:00:40]} 25. Re1 {[%clk 0:00:55]}  Nxc5 {[%clk 0:00:26]} 26. Rxc5 {[%clk 0:00:54]}  Qb6 {[%clk 0:00:26]} 27. Qd2 {[%clk 0:00:54]}  axb4 {[%clk 0:00:26]} 28. axb4 {[%clk 0:00:55]}  Ra4 {[%clk 0:00:21]} 29. exf6 {[%clk 0:00:45]}  exf6 {[%clk 0:00:21]} 30. Bd6 {[%clk 0:00:43]}  Rd8 {[%clk 0:00:19]} 31. Be7 {[%clk 0:00:43]}  Re8 {[%clk 0:00:18]} 32. Rc2 {[%clk 0:00:36]}  Qb7 {[%clk 0:00:15]} 33. Bc5 {[%clk 0:00:22]}  Rxe1+ {[%clk 0:00:16]} 34. Nxe1 {[%clk 0:00:22]}  Bxc2 {[%clk 0:00:15]} 35. Nxc2 {[%clk 0:00:23]}  Ra2 {[%clk 0:00:15]} 36. Qc3 {[%clk 0:00:19]}  Bf8 {[%clk 0:00:14]} 37. Ne3 {[%clk 0:00:18]}  Bxc5 {[%clk 0:00:13]} 38. Qxc5 {[%clk 0:00:19]}  Qc7 {[%clk 0:00:11]} 39. g3 {[%clk 0:00:18]}  Qd7 {[%clk 0:00:08]} 40. Ng4 {[%clk 0:00:18]}  Ra1+ {[%clk 0:00:08]} 41. Kg2 {[%clk 0:00:17]}  Kg7 {[%clk 0:00:09]} 42. h4 {[%clk 0:00:12]}  h6 {[%clk 0:00:08]} 43. Ne3 {[%clk 0:00:11]}  Ra8 {[%clk 0:00:07]} 44. hxg5 {[%clk 0:00:12]}  hxg5 {[%clk 0:00:07]} 45. g4 {[%clk 0:00:12]}  Re8 {[%clk 0:00:06]} 46. Nf5+ {[%clk 0:00:13]}  Kg6 {[%clk 0:00:07]} 47. Nd6 {[%clk 0:00:12]}  Re6 {[%clk 0:00:06]} 48. Nf5 {[%clk 0:00:12]}  Re4 {[%clk 0:00:06]} 49. Qf8 {[%clk 0:00:12]}  Rxg4+ {[%clk 0:00:06]} 50. Ng3 {[%clk 0:00:11]}  Rxg3+ {[%clk 0:00:04]} 51. fxg3 {[%clk 0:00:10]}  Kf5 {[%clk 0:00:04]} 52. Qc5 {[%clk 0:00:10]}  Ke6 {[%clk 0:00:04]} 53. Qc2 {[%clk 0:00:10]}  Qd6 {[%clk 0:00:04]} 54. Qe2+ {[%clk 0:00:11]}  Kd7 {[%clk 0:00:05]} 55. Qd2 {[%clk 0:00:11]}  Qe6 {[%clk 0:00:05]} 56. Qc3 {[%clk 0:00:11]}  Qe4+ {[%clk 0:00:06]} 57. Kf2 {[%clk 0:00:11]}  f5 {[%clk 0:00:06]} 58. b5 {[%clk 0:00:11]}  cxb5 {[%clk 0:00:06]} 59. Qc5 {[%clk 0:00:11]}  Qe6 {[%clk 0:00:07]} 60. Qxb5+ {[%clk 0:00:11]}  Qc6 {[%clk 0:00:07]} 61. Qb3 {[%clk 0:00:11]}  Qc4 {[%clk 0:00:07]} 62. Qe3 {[%clk 0:00:11]}  Qc2+ {[%clk 0:00:06]} 63. Kg1 {[%clk 0:00:12]}  Qb1+ {[%clk 0:00:07]} 64. Kh2 {[%clk 0:00:12]}  Qc2+ {[%clk 0:00:06]} 65. Kh3 {[%clk 0:00:12]}  g4+ {[%clk 0:00:05]} 66. Kh4 {[%clk 0:00:13]}  Qe4 {[%clk 0:00:06]} 67. Qf2 {[%clk 0:00:11]}  Kc6 {[%clk 0:00:06]} 68. Kg5 {[%clk 0:00:12]}  Kb5 {[%clk 0:00:04]} 69. Qxf5 {[%clk 0:00:12]}  Qxf5+ {[%clk 0:00:03]} 70. Kxf5 {[%clk 0:00:12]}  Kb4 {[%clk 0:00:03]} 71. Ke5 {[%clk 0:00:12]}  Kc4 {[%clk 0:00:04]} 72. Kf4 {[%clk 0:00:12]}  Kxd4 {[%clk 0:00:05]} 73. Kxg4 {[%clk 0:00:13]}  Ke4 {[%clk 0:00:05]} 74. Kh5 {[%clk 0:00:13]}  d4 {[%clk 0:00:06]} 75. g4 {[%clk 0:00:14]}  d3 {[%clk 0:00:06]} 76. g5 {[%clk 0:00:15]}  d2 {[%clk 0:00:07]} 77. g6 {[%clk 0:00:15]}  d1=Q+ {[%clk 0:00:08]} 78. Kh6 {[%clk 0:00:15]}  Qd8 {[%clk 0:00:07]} 79. g7 {[%clk 0:00:16]}  Qg8 {[%clk 0:00:08]} 80. Kg6 {[%clk 0:00:17]}  Ke5 {[%clk 0:00:08]} 81. Kh6 {[%clk 0:00:17]}  Ke6 {[%clk 0:00:09]} 82. Kg6 {[%clk 0:00:18]}  Ke7 {[%clk 0:00:09]} 83. Kh6 {[%clk 0:00:18]}  Kf7 {[%clk 0:00:10]} 84. Kh5 {[%clk 0:00:19]}  Qxg7 {[%clk 0:00:10]} 0-1


[Site "https://www.chess.com"]

[Event "Titled Tuesday Blitz May 2 Late 2023"]
[White "Ferro, Mario"]
[Black "Bochnicka, Vladimir"]
[WhiteFideId "810290"]
[BlackFideId "14943450"]
[WhiteElo "2217"]
[BlackElo "2094"]
[Result "1-0"]
[Round "02"]
[TimeControl "180+2"]
[Date "2023.05.02"]
[WhiteClock "0:01:31"]
[BlackClock "0:00:53"]

1. d4 {[%clk 0:03:00]}  Nf6 {[%clk 0:02:59]} 2. f4 {[%clk 0:02:59]}  d5 {[%clk 0:02:58]} 3. Nf3 {[%clk 0:03:00]}  e6 {[%clk 0:02:54]} 4. e3 {[%clk 0:03:00]}  Bd6 {[%clk 0:02:55]} 5. Bd3 {[%clk 0:03:00]}  b6 {[%clk 0:02:56]} 6. O-O {[%clk 0:03:00]}  Bb7 {[%clk 0:02:57]} 7. Nbd2 {[%clk 0:02:59]}  O-O {[%clk 0:02:57]} 8. Qe2 {[%clk 0:02:59]}  c5 {[%clk 0:02:55]} 9. c3 {[%clk 0:02:56]}  Ne4 {[%clk 0:02:55]} 10. Bxe4 {[%clk 0:02:51]}  dxe4 {[%clk 0:02:55]} 11. Ng5 {[%clk 0:02:51]}  Ba6 {[%clk 0:02:16]} 12. c4 {[%clk 0:02:51]}  Be7 {[%clk 0:02:11]} 13. Ngxe4 {[%clk 0:02:48]}  cxd4 {[%clk 0:02:11]} 14. Nf3 {[%clk 0:02:29]}  d3 {[%clk 0:02:08]} 15. Qf2 {[%clk 0:02:29]}  Bxc4 {[%clk 0:02:06]} 16. Rd1 {[%clk 0:02:28]}  Nc6 {[%clk 0:02:05]} 17. b3 {[%clk 0:02:25]}  Bd5 {[%clk 0:01:59]} 18. Nc3 {[%clk 0:02:16]}  Bxf3 {[%clk 0:01:52]} 19. Qxf3 {[%clk 0:02:17]}  Rc8 {[%clk 0:01:51]} 20. Bb2 {[%clk 0:02:16]}  Bf6 {[%clk 0:01:51]} 21. e4 {[%clk 0:02:14]}  Bxc3 {[%clk 0:01:37]} 22. Bxc3 {[%clk 0:02:13]}  Nd4 {[%clk 0:01:35]} 23. Qxd3 {[%clk 0:01:56]}  Rxc3 {[%clk 0:01:35]} 24. Qxd4 {[%clk 0:01:57]}  Qc7 {[%clk 0:01:35]} 25. e5 {[%clk 0:01:46]}  h6 {[%clk 0:01:34]} 26. h3 {[%clk 0:01:38]}  Rc8 {[%clk 0:01:34]} 27. Rd2 {[%clk 0:01:35]}  Rc2 {[%clk 0:01:24]} 28. Rad1 {[%clk 0:01:32]}  Rxd2 {[%clk 0:01:04]} 29. Rxd2 {[%clk 0:01:33]}  Qc1+ {[%clk 0:01:04]} 30. Kh2 {[%clk 0:01:32]}  Rc2 {[%clk 0:00:53]} 31. Qd8+ {[%clk 0:01:31]} 1-0


[Site "https://www.chess.com"]

[Event "Titled Tuesday Blitz May 2 Late 2023"]
[White "Tsotsonava, Elene"]
[Black "Przybylski, Wojciech"]
[WhiteFideId "13615939"]
[BlackFideId "1117599"]
[WhiteElo "1829"]
[BlackElo "2222"]
[Result "1-0"]
[Round "02"]
[TimeControl "180+2"]
[Date "2023.05.02"]
[WhiteClock "0:00:36"]
[BlackClock "0:00:03"]

1. d4 {[%clk 0:03:00]}  Nf6 {[%clk 0:02:44]} 2. Nf3 {[%clk 0:03:00]}  e6 {[%clk 0:02:43]} 3. c4 {[%clk 0:02:59]}  b6 {[%clk 0:02:42]} 4. a3 {[%clk 0:02:55]}  Ba6 {[%clk 0:02:41]} 5. Qc2 {[%clk 0:02:50]}  Bb7 {[%clk 0:02:40]} 6. Nc3 {[%clk 0:02:47]}  d5 {[%clk 0:02:36]} 7. cxd5 {[%clk 0:02:42]}  exd5 {[%clk 0:02:34]} 8. Bg5 {[%clk 0:02:40]}  Bd6 {[%clk 0:02:31]} 9. e3 {[%clk 0:02:39]}  O-O {[%clk 0:02:30]} 10. Bd3 {[%clk 0:02:39]}  h6 {[%clk 0:02:28]} 11. Bh4 {[%clk 0:02:39]}  a6 {[%clk 0:02:27]} 12. O-O {[%clk 0:02:37]}  Nbd7 {[%clk 0:02:25]} 13. b4 {[%clk 0:02:24]}  Re8 {[%clk 0:02:22]} 14. Rac1 {[%clk 0:02:19]}  Rc8 {[%clk 0:02:19]} 15. Bf5 {[%clk 0:02:14]}  c5 {[%clk 0:02:14]} 16. Bxf6 {[%clk 0:02:05]}  Nxf6 {[%clk 0:02:14]} 17. Bxc8 {[%clk 0:02:03]}  Qxc8 {[%clk 0:02:14]} 18. bxc5 {[%clk 0:02:00]}  bxc5 {[%clk 0:02:13]} 19. dxc5 {[%clk 0:02:00]}  Qxc5 {[%clk 0:02:12]} 20. a4 {[%clk 0:01:53]}  Rc8 {[%clk 0:02:11]} 21. Qb2 {[%clk 0:01:44]}  Qa7 {[%clk 0:02:11]} 22. Nd4 {[%clk 0:01:43]}  Be5 {[%clk 0:02:06]} 23. Nce2 {[%clk 0:01:39]}  Re8 {[%clk 0:02:00]} 24. a5 {[%clk 0:01:35]}  Ba8 {[%clk 0:01:50]} 25. Qb6 {[%clk 0:01:34]}  Qd7 {[%clk 0:01:48]} 26. Qxa6 {[%clk 0:01:33]}  Ne4 {[%clk 0:01:34]} 27. Qb5 {[%clk 0:01:25]}  Qe7 {[%clk 0:01:05]} 28. Nf5 {[%clk 0:01:21]}  Qf8 {[%clk 0:00:47]} 29. Neg3 {[%clk 0:01:20]}  Nc3 {[%clk 0:00:34]} 30. Qd3 {[%clk 0:01:17]}  Qb4 {[%clk 0:00:24]} 31. a6 {[%clk 0:01:16]}  Ne4 {[%clk 0:00:08]} 32. Nxe4 {[%clk 0:01:12]}  dxe4 {[%clk 0:00:08]} 33. Qd7 {[%clk 0:01:10]}  Rf8 {[%clk 0:00:05]} 34. Rc8 {[%clk 0:01:08]}  g6 {[%clk 0:00:04]} 35. Nxh6+ {[%clk 0:00:58]}  Kg7 {[%clk 0:00:04]} 36. Rxf8 {[%clk 0:00:55]}  Qxf8 {[%clk 0:00:03]} 37. Ng4 {[%clk 0:00:53]}  Bd6 {[%clk 0:00:03]} 38. Rd1 {[%clk 0:00:48]}  Bc5 {[%clk 0:00:03]} 39. Qd8 {[%clk 0:00:45]}  f5 {[%clk 0:00:03]} 40. Qxf8+ {[%clk 0:00:43]}  Kxf8 {[%clk 0:00:03]} 41. Rd8+ {[%clk 0:00:42]}  Ke7 {[%clk 0:00:03]} 42. Rxa8 {[%clk 0:00:42]}  fxg4 {[%clk 0:00:03]} 43. a7 {[%clk 0:00:41]}  Kf7 {[%clk 0:00:03]} 44. Rf8+ {[%clk 0:00:39]}  Kxf8 {[%clk 0:00:02]} 45. a8=Q+ {[%clk 0:00:37]}  Kf7 {[%clk 0:00:03]} 46. Qd5+ {[%clk 0:00:36]} 1-0


[Site "https://www.chess.com"]

[Event "Titled Tuesday Blitz May 2 Late 2023"]
[White "Haszon, David"]
[Black "Srdanovic, Jovana"]
[WhiteFideId "733610"]
[BlackFideId "954810"]
[WhiteElo "2210"]
[BlackElo "2145"]
[Result "1-0"]
[Round "02"]
[TimeControl "180+2"]
[Date "2023.05.02"]
[WhiteClock "0:00:10"]
[BlackClock "0:00:12"]

1. d4 {[%clk 0:02:58]}  d5 {[%clk 0:02:58]} 2. Bf4 {[%clk 0:02:58]}  e6 {[%clk 0:02:55]} 3. e3 {[%clk 0:02:58]}  Bd6 {[%clk 0:02:54]} 4. Nd2 {[%clk 0:02:58]}  Ne7 {[%clk 0:02:52]} 5. Ngf3 {[%clk 0:02:56]}  O-O {[%clk 0:02:50]} 6. c3 {[%clk 0:02:54]}  c5 {[%clk 0:02:50]} 7. Bd3 {[%clk 0:02:48]}  f6 {[%clk 0:02:25]} 8. O-O {[%clk 0:02:31]}  Nbc6 {[%clk 0:02:21]} 9. Bxd6 {[%clk 0:02:16]}  Qxd6 {[%clk 0:02:20]} 10. dxc5 {[%clk 0:02:16]}  Qxc5 {[%clk 0:02:19]} 11. c4 {[%clk 0:02:16]}  e5 {[%clk 0:01:54]} 12. cxd5 {[%clk 0:02:10]}  Nxd5 {[%clk 0:01:51]} 13. Rc1 {[%clk 0:01:59]}  Qe7 {[%clk 0:01:45]} 14. Nb3 {[%clk 0:01:34]}  Be6 {[%clk 0:01:26]} 15. Nc5 {[%clk 0:01:32]}  Bf7 {[%clk 0:01:24]} 16. a3 {[%clk 0:01:19]}  Rfd8 {[%clk 0:01:19]} 17. Qc2 {[%clk 0:01:15]}  g6 {[%clk 0:01:01]} 18. Rfd1 {[%clk 0:01:10]}  Rac8 {[%clk 0:00:59]} 19. Qa4 {[%clk 0:00:56]}  Nb6 {[%clk 0:00:54]} 20. Qh4 {[%clk 0:00:40]}  Rd5 {[%clk 0:00:41]} 21. b4 {[%clk 0:00:34]}  Rcd8 {[%clk 0:00:39]} 22. Be2 {[%clk 0:00:30]}  Rxd1+ {[%clk 0:00:34]} 23. Rxd1 {[%clk 0:00:31]}  Rxd1+ {[%clk 0:00:34]} 24. Bxd1 {[%clk 0:00:32]}  Qd6 {[%clk 0:00:26]} 25. Be2 {[%clk 0:00:28]}  Nd8 {[%clk 0:00:19]} 26. Qe4 {[%clk 0:00:26]}  Bd5 {[%clk 0:00:15]} 27. Qc2 {[%clk 0:00:23]}  Nd7 {[%clk 0:00:14]} 28. e4 {[%clk 0:00:17]}  Bc6 {[%clk 0:00:13]} 29. Nb3 {[%clk 0:00:14]}  Ne6 {[%clk 0:00:13]} 30. Na5 {[%clk 0:00:12]}  Nd4 {[%clk 0:00:12]} 31. Nxd4 {[%clk 0:00:12]}  exd4 {[%clk 0:00:11]} 32. Bc4+ {[%clk 0:00:12]}  Kg7 {[%clk 0:00:10]} 33. Nxc6 {[%clk 0:00:12]}  bxc6 {[%clk 0:00:10]} 34. Bd3 {[%clk 0:00:10]}  Ne5 {[%clk 0:00:11]} 35. g3 {[%clk 0:00:10]}  Nxd3 {[%clk 0:00:11]} 36. Qxd3 {[%clk 0:00:11]}  Qe5 {[%clk 0:00:12]} 37. f4 {[%clk 0:00:11]}  Qd6 {[%clk 0:00:11]} 38. Kf2 {[%clk 0:00:11]}  c5 {[%clk 0:00:12]} 39. b5 {[%clk 0:00:10]}  Qa6 {[%clk 0:00:12]} 40. bxa6 {[%clk 0:00:10]} 1-0


[Site "https://www.chess.com"]